bitfinex/quotes_ETHUSD_20240709
["timestamp","ask_amount","ask_price","bid_price","bid_amount"]
[1720520839110,3.23452,3091.7,3090.9,2.586]
[1720520839309,3.23452,3091.7,3090.9,5.82129]
[1720520843275,3.59170803,3091.8,3091.0,3.23519]
[1720520843424,3.23442,3091.8,3091.0,5.82119]
[1720520844130,3.23433,3091.9,3091.0,9.05628]
[1720520844342,6.46867,3091.9,3091.0,9.05628]
[1720520844640,3.91509403,3091.8,3091.0,5.82109]
[1720520845349,3.91509403,3091.8,3091.0,9.05622]
[1720520845552,3.91509403,3091.8,3091.1,3.23507]
[1720520845553,0.68072403,3091.8,3091.1,3.23507]
[1720520845758,3.57281026,3092.0,3091.1,3.23507]
[1720520845960,3.23425,3091.9,3091.1,3.23507]
[1720520846539,0.33857026,3092.0,3091.2,3.23489]
[1720520846888,0.33857026,3092.0,3091.3,2.4028926]
[1720520847040,0.33857026,3092.0,3091.8,3.23434]
[1720520847473,3.23361,3092.6,3091.8,3.23434]
[1720520847671,0.895988,3092.5,3091.8,3.23434]
[1720520848876,0.895988,3092.5,3091.9,2.3382]
[1720520849080,6.23328,3092.9,3091.9,5.57243]
[1720520849235,3.23304,3093.1,3092.2,3.23388]
[1720520849437,3.23304,3093.1,3092.4,2.586]
[1720520849438,0.33856371,3092.8,3092.4,2.586]
[1720520849753,3.23311,3093.0,3092.0,5.82005]
[1720520849954,3.23321,3092.9,3092.0,5.82005]
[1720520850161,3.23321,3092.9,3092.1,3.23403]
[1720520850680,3.23343,3092.7,3092.0,2.586]
[1720520850862,0.323343,3092.6,3091.9,5.57245]
[1720520851063,3.23343,3092.7,3091.9,8.80663]
[1720520851479,3.23343,3092.7,3091.9,5.57238]
[1720520851670,0.37173973,3092.6,3091.9,5.57238]
[1720520852263,3.23343,3092.7,3091.9,5.57238]
[1720520852458,0.37177872,3092.6,3091.9,5.57238]
[1720520852661,0.36052087,3092.5,3091.6,2.586]
[1720520853001,3.23389,3092.3,3091.6,2.586]
[1720520853146,0.37180634,3092.2,3091.6,2.586]
[1720520853984,0.37180634,3092.1,3091.6,2.586]
[1720520854146,3.23382,3092.4,3091.6,2.586]
[1720520854487,3.60564226,3092.3,3091.6,2.586]
[1720520854681,3.60574226,3092.2,3091.4,3.23477]
[1720520854881,3.60574226,3092.2,3091.3,3.23482]
[1720520854882,0.37179226,3092.1,3091.3,2.586]
[1720520855382,0.37179226,3092.1,3091.3,5.82088]
[1720520855764,3.60599321,3092.0,3091.3,2.586]
[1720520856100,0.37183321,3091.9,3091.3,2.586]
[1720520856608,2.76173321,3091.9,3091.0,5.71028]
[1720520856763,6.84069321,3091.8,3091.0,5.71028]
[1720520857105,0.37183321,3091.7,3091.0,5.71028]
[1720520857286,3.60630321,3091.7,3090.9,2.586]
[1720520857614,0.37183321,3091.6,3090.9,5.82129]
[1720520857899,0.37183321,3091.6,3090.9,9.05651]
[1720520858271,0.37183321,3091.6,3090.9,5.82122]
[1720520859079,3.23447,3091.7,3090.9,5.82122]
[1720520859309,0.37197672,3091.6,3090.9,9.05646]
[1720520859472,0.37197672,3091.6,3090.9,5.82122]
[1720520859669,0.06462145,3091.5,3090.7,2.4751]
[1720520860006,0.37197672,3091.4,3090.7,2.4751]
[1720520860218,0.37197672,3091.4,3090.7,5.71061]
[1720520860598,0.37197672,3091.3,3090.7,2.4751]
[1720520860809,0.06462145,3091.5,3090.7,2.4751]
[1720520860810,0.37197672,3091.2,3090.7,2.4751]
[1720520861107,3.29932145,3091.5,3090.7,2.4751]
[1720520861317,0.37205917,3091.4,3090.7,5.71057]
[1720520861683,0.37205917,3091.4,3090.8,3.2354]
[1720520862010,0.37205917,3091.3,3090.9,2.586]
[1720520862215,0.37200585,3091.2,3090.9,2.586]
[1720520862418,1.68508024,3091.6,3090.9,2.586]
[1720520862419,3.23462,3091.6,3090.9,2.586]
[1720520862707,0.37201713,3091.5,3090.9,2.586]
[1720520863497,0.37201713,3091.4,3091.0,3.23511]
[1720520863814,2.3899,3091.9,3091.0,3.23511]
[1720520863815,1.6851767,3091.9,3091.1,3.23507]
[1720520864115,2.05712199,3091.8,3091.1,3.23507]
[1720520864408,0.37194529,3091.7,3091.2,3.29961447]
[1720520864610,1.6851767,3091.9,3091.1,3.23509]
[1720520864611,0.37194529,3091.6,3091.1,3.23509]
[1720520864909,0.37194529,3091.6,3091.0,3.23511]
[1720520864910,1.6851767,3091.9,3091.2,3.23498]
[1720520865212,0.3719779,3091.8,3091.4,3.2347]
[1720520865423,0.3719779,3091.8,3091.4,3.29936789]
[1720520865594,0.33860613,3092.2,3091.5,3.23461]
[1720520865789,0.37190615,3092.1,3091.5,3.23461]
[1720520866116,0.37190615,3092.1,3091.4,3.23468]
[1720520866285,0.37192522,3092.0,3091.4,6.53408795]
[1720520866482,5.25859539,3092.2,3091.5,3.23466]
[1720520866483,0.37192522,3091.9,3091.5,3.23466]
[1720520866684,2.02463539,3092.2,3091.5,3.23466]
[1720520866992,2.05814353,3092.1,3091.5,3.23466]
[1720520867193,0.37197632,3092.0,3091.5,6.46927]
[1720520867400,0.37197632,3091.9,3091.5,6.46923]
[1720520867699,0.37197632,3091.8,3091.5,3.23461]
[1720520867913,1.68616721,3092.1,3091.5,6.46922]
[1720520868115,0.37203,3092.0,3091.5,3.23461]
[1720520868291,0.37203,3092.0,3091.3,5.0453]
[1720520868479,1.68616721,3092.2,3091.3,2.586]
[1720520868480,0.37203,3091.9,3091.3,2.586]
[1720520868679,1.68616721,3092.1,3091.3,2.586]
[1720520868680,0.37203,3091.8,3091.3,2.586]
[1720520869010,0.37203,3091.7,3091.4,3.23471]
[1720520869212,3.23398,3092.2,3091.4,6.46943]
[1720520869388,1.68645587,3092.0,3091.4,3.23471]
[1720520869583,0.37200249,3091.9,3091.4,3.23471]
[1720520870516,0.37200249,3091.9,3091.3,2.586]
[1720520870517,2.05845836,3091.9,3091.3,2.586]
[1720520870709,0.37200249,3091.8,3091.1,3.23506]
[1720520870911,2.05845836,3091.8,3091.1,3.23506]
[1720520871079,0.37200249,3091.7,3091.1,3.23506]
[1720520871475,0.37200249,3091.7,3090.9,8.31443]
[1720520871673,1.68645587,3091.6,3090.9,8.31443]
[1720520871886,3.60671249,3091.5,3090.6,2.3436]
[1720520872114,2.05845836,3091.4,3090.7,3.2355]
[1720520872322,0.37200249,3091.3,3090.7,3.2355]
[1720520872618,0.37204573,3091.2,3090.7,3.2355]
[1720520872921,0.37204573,3091.1,3090.7,3.2355]
[1720520873078,1.68631358,3091.4,3090.7,3.2355]
[1720520873274,0.37203301,3091.3,3090.7,3.2355]
[1720520873511,0.37203301,3091.2,3090.7,3.2355]
[1720520873720,0.37203301,3091.1,3090.7,3.2355]
[1720520874016,0.37203301,3091.0,3090.7,3.2355]
[1720520874222,1.68631358,3091.4,3090.7,3.2355]
[1720520874396,0.37203121,3091.3,3090.7,3.2355]
[1720520876019,0.37201584,3091.2,3090.7,3.2355]
[1720520876221,0.37201584,3091.1,3090.7,3.2355]
[1720520876430,5.81440912,3091.5,3090.7,3.2355]
[1720520876629,0.37190272,3091.4,3090.7,3.2355]
[1720520876836,2.05789163,3091.4,3090.7,3.2355]
[1720520877045,0.37190272,3091.3,3090.7,3.2355]
[1720520878301,0.37190272,3091.3,3090.6,5.57921]
[1720520879199,0.90116988,3091.3,3090.6,5.57921]
[1720520879397,0.37192876,3091.2,3090.6,5.57921]
[1720520880542,0.37192876,3091.2,3090.6,5.57916]
[1720520881837,0.52926716,3091.3,3090.6,5.57916]
[1720520882146,3.60687672,3091.2,3090.5,2.586]
[1720520882449,3.60693672,3091.1,3090.5,2.586]
[1720520882633,0.37182672,3091.0,3090.5,2.586]
[1720520883142,0.37182672,3090.9,3090.5,2.586]
[1720520883356,0.37188966,3090.8,3090.5,2.586]
[1720520883565,3.23514,3091.1,3090.5,2.586]
[1720520883846,0.90151723,3091.0,3090.5,2.586]
[1720520884047,0.43652148,3090.9,3090.2,2.3357]
[1720520884262,3.60731003,3090.8,3089.9,5.57198]
[1720520884414,0.37190003,3090.7,3089.9,5.57198]
[1720520885046,3.23541,3090.8,3089.9,5.57198]
[1720520885218,0.37200645,3090.7,3090.1,3.23606]
[1720520885422,0.37200645,3090.7,3089.9,5.57197]
[1720520885755,0.37200645,3090.7,3089.9,8.80824]
[1720520886250,0.06462145,3090.6,3089.9,5.57197]
[1720520886563,0.49006919,3090.6,3089.9,2.3357]
[1720520886776,0.37199107,3090.5,3089.9,2.3357]
[1720520888377,3.66107774,3090.6,3089.9,5.57204]
[1720520888584,0.98670825,3090.5,3089.7,5.82247]
[1720520888748,1.68286275,3090.8,3089.8,3.30110861]
[1720520888948,0.37206952,3090.7,3090.2,2.3278]
[1720520889276,8.8582,3091.0,3090.2,5.56383]
[1720520889481,0.37200808,3090.9,3090.2,5.56383]
[1720520891192,0.37200808,3090.9,3090.3,0.06471314]
[1720520891347,0.33860374,3091.1,3090.5,5.82165]
[1720520891678,5.51534,3091.3,3090.5,5.82165]
[1720520891853,1.06836156,3091.2,3090.5,5.82165]
[1720520892061,0.69632628,3091.2,3090.5,5.82165]
[1720520892577,0.69632628,3091.2,3090.6,3.23555]
[1720520892766,3.0,3091.4,3090.6,6.47108]
[1720520893093,0.37203409,3091.3,3091.1,3.23499]
[1720520893243,2.01868464,3091.9,3091.1,6.46998]
[1720520893244,0.33859108,3091.5,3091.1,6.46998]
[1720520893587,0.33859108,3091.5,3091.0,3.23519]
[1720520893745,2.4596,3091.8,3090.9,2.586]
[1720520893947,8.93755097,3091.7,3090.9,2.586]
[1720520894253,3.60664005,3091.6,3090.6,3.23555]
[1720520894471,1.3303936,3091.5,3090.7,3.23549]
[1720520894646,0.37201005,3091.4,3090.7,3.23549]
[1720520894981,0.37201906,3091.3,3090.7,3.23549]
[1720520895147,0.8937621,3091.5,3090.7,3.23549]
[1720520895349,0.95958949,3091.4,3090.7,3.23549]
[1720520895649,0.37201809,3091.3,3090.7,3.23549]
[1720520896043,0.37201809,3091.3,3090.6,3.23555]
[1720520896283,0.37201809,3091.3,3090.6,3.23551]
[1720520896687,1.68270046,3091.5,3090.5,4.9154]
[1720520896688,0.37201809,3091.2,3091.0,3.23514]
[1720520896981,1.68270046,3091.7,3091.0,3.23519]
[1720520897148,0.3719959,3091.6,3091.0,3.23519]
[1720520898267,3.47025347,3091.7,3090.9,2.586]
[1720520898484,4.17299329,3091.5,3090.9,2.586]
[1720520898659,2.05597978,3091.4,3090.9,5.82128]
[1720520898856,0.37198649,3091.3,3090.9,3.23528]
[1720520899248,0.37198649,3091.2,3090.9,3.23528]
[1720520899450,0.37198649,3091.1,3090.9,3.23528]
[1720520899655,4.91881329,3091.4,3090.5,5.82165]
[1720520899878,2.0559861,3091.3,3090.5,2.586]
[1720520900048,0.37199281,3091.2,3090.6,3.2356]
[1720520900249,0.90107342,3091.2,3090.6,3.2356]
[1720520900476,0.37199281,3091.1,3090.6,3.2356]
[1720520901189,0.37199281,3091.1,3090.5,2.586]
[1720520901548,0.52908061,3091.2,3090.5,5.82164]
[1720520901766,0.37201408,3091.1,3090.5,5.82164]
[1720520902485,0.37201408,3091.1,3090.6,3.2356]
[1720520902978,0.37201408,3091.0,3090.6,3.2356]
[1720520903184,0.37201408,3090.9,3090.6,3.2356]
[1720520903483,1.68500196,3091.2,3090.6,3.2356]
[1720520903714,0.37201873,3091.1,3090.6,3.2356]
[1720520903875,0.37201873,3091.0,3090.6,3.2356]
[1720520904076,0.37201873,3090.9,3090.6,3.2356]
[1720520904283,4.91993196,3091.3,3090.6,3.2356]
[1720520904483,2.05702505,3091.2,3090.6,3.2356]
[1720520904711,0.37202309,3091.1,3090.6,3.2356]
[1720520905583,0.37202309,3091.0,3090.6,3.2356]
[1720520905823,0.37202309,3090.9,3090.6,3.2356]
[1720520905986,4.91993196,3091.3,3090.6,3.2356]
[1720520906192,0.37201502,3091.2,3090.6,3.2356]
[1720520908530,0.37198974,3091.1,3090.6,3.2356]
[1720520908693,0.37198974,3091.0,3090.6,3.2356]
[1720520908900,0.37198974,3090.9,3090.6,3.2356]
[1720520909098,4.92012542,3091.3,3090.6,3.2356]
[1720520909410,0.37199808,3091.2,3090.6,3.2356]
[1720520910918,2.0571935,3091.2,3090.6,3.2356]
[1720520911121,0.37199808,3091.1,3090.6,3.2356]
[1720520911333,0.37199808,3091.0,3090.6,3.2356]
[1720520911535,0.37193739,3090.9,3090.6,3.2356]
[1720520911837,4.40944592,3091.3,3090.6,3.2356]
[1720520912131,2.05711744,3091.2,3090.6,3.2356]
[1720520912296,0.37188959,3091.1,3090.6,3.2356]
[1720520912694,0.37188959,3091.1,3091.0,1.076]
[1720520913933,0.37188959,3091.2,3091.0,1.076]
[1720520914097,0.37188959,3091.2,3091.1,1.076]
[1720520914825,0.37188959,3091.3,3091.1,1.076]
[1720520915031,0.37188959,3091.3,3091.2,1.076]
[1720520915233,0.37184024,3091.3,3091.2,1.076]
[1720520915548,0.37186245,3091.3,3091.2,1.076]
[1720520916544,2.05828581,3091.3,3091.2,1.076]
[1720520918518,3.0,3091.6,3091.2,1.076]
[1720520918845,1.68762912,3091.3,3090.9,3.23529]
[1720520919015,1.68762912,3091.3,3091.2,1.076]
[1720520919201,2.0595678,3091.3,3091.2,1.076]
[1720520922067,1.68759198,3091.3,3091.2,1.076]
[1720520922234,2.05952966,3091.3,3091.2,1.076]
[1720520922429,3.0,3091.5,3091.2,1.076]
[1720520922617,1.68754009,3091.3,3091.2,1.076]
[1720520922817,2.05946877,3091.3,3091.2,1.076]
[1720520923064,2.05946532,3091.3,3091.2,1.076]
[1720520925446,2.05950432,3091.3,3091.2,1.076]
[1720520928661,0.85982365,3091.5,3091.2,1.076]
[1720520928872,1.68780893,3091.3,3090.8,3.23531]
[1720520929072,2.05980534,3091.2,3090.7,2.4128]
[1720520929237,0.37199641,3091.1,3091.0,1.076]
[1720520929425,2.05980534,3091.1,3091.0,1.076]
[1720520929929,0.37199641,3091.1,3091.0,1.076]
[1720520930419,0.37199641,3091.1,3091.0,3.3476]
[1720520930850,0.37199641,3091.2,3091.0,3.3476]
[1720520931086,0.37199641,3091.1,3091.0,2.2716]
[1720520931219,2.05980534,3091.3,3091.0,3.3476]
[1720520931568,0.37199641,3091.2,3091.0,2.2716]
[1720520931763,0.37199641,3091.2,3091.1,1.076]
[1720520931951,0.37199641,3091.3,3091.1,1.076]
[1720520932126,0.37199641,3091.3,3091.0,2.2716]
[1720520932127,0.37199834,3091.2,3091.0,2.2716]
[1720520932329,1.68802983,3091.3,3091.2,1.076]
[1720520932662,0.37199774,3091.3,3091.2,1.076]
[1720520932871,0.37199774,3091.3,3091.2,4.31098]
[1720520933167,0.33865611,3091.6,3091.4,2.4818]
[1720520933329,3.23385,3092.3,3091.5,4.31067]
[1720520933330,1.68802983,3092.0,3091.5,4.31067]
[1720520933525,0.3719389,3091.9,3091.5,3.23467]
[1720520933864,0.3719389,3091.9,3091.8,1.076]
[1720520934033,0.3719389,3091.9,3091.8,4.31036]
[1720520935259,0.3719389,3092.1,3091.8,1.076]
[1720520935463,0.20266066,3092.2,3092.1,1.076]
[1720520935626,1.75135911,3092.2,3092.1,1.076]
[1720520936705,7.01066579,3092.2,3091.7,1.076]
[1720520936838,1.6878258,3091.8,3091.7,1.076]
[1720520937037,3.23653543,3091.8,3091.7,1.076]
[1720520937238,1.54870963,3091.8,3091.5,1.076]
[1720520937465,1.68782774,3091.7,3091.5,1.076]
[1720520937769,2.05978494,3091.6,3091.5,1.076]
[1720520938468,0.3719572,3091.6,3091.5,1.076]
[1720520938760,1.5486096,3091.6,3091.3,1.076]
[1720520939062,1.68759741,3091.4,3091.3,1.076]
[1720520939284,2.05961381,3091.4,3091.3,1.076]
[1720520940655,0.3720164,3091.4,3091.3,1.076]
[1720520941350,0.37197737,3091.4,3091.3,1.076]
[1720520942496,2.05938057,3091.4,3091.3,1.076]
[1720520942695,0.37197737,3091.4,3091.3,1.076]
[1720520943069,3.5729115,3091.5,3091.3,1.076]
[1720520943283,1.54802766,3091.4,3091.3,1.076]
[1720520943801,0.37197737,3091.4,3091.3,1.076]
[1720520944090,1.54802766,3091.4,3091.3,1.076]
[1720520944594,4.78261592,3091.4,3091.1,1.076]
[1720520944757,1.68658688,3091.2,3091.1,1.076]
[1720520944956,2.70538594,3091.2,3091.1,1.076]
[1720520945199,2.19472211,3091.2,3091.1,1.076]
[1720520946806,2.25934356,3091.2,3091.1,1.076]
[1720520946986,5.42970211,3091.2,3091.1,1.076]
[1720520947896,5.42894539,3091.2,3091.1,1.076]
[1720520948975,7.45173876,3091.2,3090.9,1.076]
[1720520949183,1.68480884,3091.0,3090.9,1.076]
[1720520949500,2.05652542,3091.0,3090.9,1.076]
[1720520951271,2.05664026,3091.0,3090.9,1.076]
[1720520951904,3.23537,3090.9,3090.1,2.4037]
[1720520952062,3.67165672,3090.8,3090.7,1.076]
[1720520952262,4.78202078,3090.8,3090.7,1.076]
[1720520952474,6.08680616,3090.8,3090.7,1.076]
[1720520952895,9.32221616,3090.8,3090.7,1.076]
[1720520954502,9.32259075,3090.8,3090.7,1.076]
[1720520956895,9.83143456,3090.8,3090.7,1.076]
[1720520957207,8.14736988,3090.8,3090.7,1.076]
[1720520957567,9.83119476,3090.8,3090.7,1.076]
[1720520957762,9.45943026,3090.8,3090.7,1.076]
[1720520958004,9.32277875,3090.8,3090.7,1.076]
[1720520958205,9.83124623,3090.8,3090.7,1.076]
[1720520958708,8.14741254,3090.8,3090.7,1.076]
[1720520959407,9.83124623,3090.8,3090.7,1.076]
[1720520959909,4.91200254,3090.8,3090.7,1.076]
[1720520960319,3.23575,3090.5,3090.0,2.3381]
[1720520960609,3.23575,3090.5,3090.4,1.076]
[1720520960815,3.60758205,3090.5,3090.4,1.076]
[1720520961177,3.23575,3090.5,3090.4,1.076]
[1720520961377,3.60757391,3090.5,3090.4,1.076]
[1720520961980,4.2918863,3090.5,3090.4,1.076]
[1720520963395,3.60757391,3090.5,3090.4,1.076]
[1720520964717,0.3718476,3090.5,3090.4,1.076]
[1720520964940,3.6075476,3090.6,3090.4,1.076]
[1720520965137,0.3718476,3090.5,3090.4,1.076]
[1720520965415,0.37183377,3090.5,3090.4,1.076]
[1720520965576,0.37183377,3090.6,3090.4,1.076]
[1720520965777,0.37183377,3090.5,3090.0,2.3381]
[1720520966000,1.68260993,3090.8,3090.4,1.076]
[1720520966188,0.37182263,3090.7,3090.6,1.076]
[1720520967103,0.37182263,3090.8,3090.6,1.076]
[1720520967922,8.25588895,3090.9,3090.6,1.076]
[1720520968219,3.60714644,3090.8,3090.6,1.076]
[1720520968427,0.37172644,3090.7,3090.6,1.076]
[1720520969816,10.13671198,3090.7,3089.7,2.423]
[1720520970123,1.68186532,3090.5,3090.1,1.076]
[1720520970327,3.23601,3090.3,3090.1,1.076]
[1720520970495,2.11821321,3090.4,3089.2,5.66007]
[1720520970496,0.37172644,3090.2,3089.2,5.66007]
[1720520970697,3.23635,3089.9,3089.8,1.076]
[1720520973840,0.37175289,3089.9,3089.2,2.423]
[1720520974002,3.23663,3089.7,3089.5,1.076]
[1720520974901,3.23646,3089.8,3089.5,1.076]
[1720520975243,3.23646,3089.8,3089.7,1.076]
[1720520975730,6.473,3089.8,3089.7,1.076]
[1720520975916,7.12676214,3089.8,3089.7,1.076]
[1720520976117,7.4985291,3089.8,3089.7,1.076]
[1720520976426,7.12676214,3089.8,3089.7,1.076]
[1720520979620,3.23664,3089.7,3088.9,2.3525]
[1720520979942,3.23664,3089.7,3089.5,1.076]
[1720520980253,3.23666,3089.6,3088.9,2.3525]
[1720520980454,3.23666,3089.6,3089.5,1.076]
[1720520981162,6.23646,3089.8,3089.5,1.076]
[1720520981163,3.23657,3089.7,3089.5,1.076]
[1720520985778,3.23666,3089.6,3089.5,1.076]
[1720520988054,3.0,3089.8,3089.5,1.076]
[1720520988256,3.0,3089.9,3089.4,2.3692]
[1720520988455,0.37153442,3089.8,3089.7,1.076]
[1720520988661,3.0,3089.9,3089.7,1.076]
[1720520989058,7.24752485,3090.2,3089.7,1.076]
[1720520989059,1.67852485,3090.3,3089.7,1.076]
[1720520989273,0.37150326,3090.2,3090.1,1.076]
[1720520989809,0.37150326,3090.3,3090.1,1.076]
[1720520990015,0.96955,3090.5,3090.1,1.076]
[1720520990194,0.37148756,3090.4,3090.1,1.076]
[1720520991093,0.37148756,3090.4,3090.3,1.076]
[1720520991460,0.33868463,3090.5,3090.3,1.076]
[1720520991860,0.33868463,3090.5,3090.0,3.30087792]
[1720520992084,0.33868463,3090.5,3090.4,1.076]
[1720520992823,0.71012329,3090.5,3090.4,1.076]
[1720520994994,0.33868463,3090.5,3090.4,1.076]
[1720520995416,0.71014615,3090.5,3090.4,1.076]
[1720520998531,0.71009915,3090.5,3090.4,1.076]
[1720521001138,0.71008565,3090.5,3090.4,1.076]
[1720521002019,0.71008565,3090.5,3090.4,3.4788]
[1720521002217,0.33868463,3090.5,3090.4,3.4788]
[1720521002734,1.68103909,3091.2,3090.5,2.4505]
[1720521003057,1.68103909,3091.6,3091.1,3.5265]
[1720521003240,0.37137007,3091.5,3091.4,1.076]
[1720521003543,0.37139945,3091.6,3091.4,1.076]
[1720521003928,0.37139945,3091.5,3091.4,1.076]
[1720521004135,2.02072317,3091.8,3091.5,2.4797]
[1720521004136,0.33865151,3091.8,3091.5,2.4797]
[1720521004334,1.68210511,3092.1,3091.7,1.076]
[1720521004531,0.37145916,3092.0,3091.9,1.076]
[1720521004740,0.37145916,3092.1,3091.9,1.076]
[1720521005444,0.37145916,3092.1,3091.5,2.4797]
[1720521005641,3.23416,3092.0,3091.1,5.67833]
[1720521005946,0.80310467,3091.9,3091.3,1.076]
[1720521006249,0.37145916,3091.8,3091.3,1.076]
[1720521006629,0.37145916,3091.8,3091.1,5.67833]
[1720521007429,0.37135572,3091.7,3091.1,5.67833]
[1720521007633,3.23451,3091.7,3091.1,2.4433]
[1720521007844,0.323451,3091.6,3091.1,2.4433]
[1720521009849,0.323451,3091.6,3091.1,5.67839]
[1720521010141,9.83561406,3091.9,3091.1,5.67839]
[1720521010345,0.33863298,3091.8,3091.1,5.67839]
[1720521010511,0.33863298,3091.8,3091.2,3.23497]
[1720521010911,0.33863298,3091.8,3091.3,3.29956567]
[1720521011144,0.33863298,3091.8,3091.3,3.23487]
[1720521011444,0.33863298,3091.8,3091.4,3.2347]
[1720521011632,3.0,3092.2,3091.4,3.2347]
[1720521011808,4.30802742,3092.2,3091.4,3.2347]
[1720521012012,4.30802742,3092.2,3091.1,2.4433]
[1720521012013,3.2341,3092.1,3091.1,2.4433]
[1720521012332,3.0,3092.0,3091.1,2.4433]
[1720521012642,6.23421,3092.0,3091.2,3.23498]
[1720521012946,3.23436,3091.8,3090.9,3.23523]
[1720521013448,3.23436,3091.8,3091.0,3.23513]
[1720521013613,3.23436,3091.8,3090.9,3.23523]
[1720521013814,3.048521,3091.9,3090.9,3.23523]
[1720521014049,3.0,3091.8,3090.9,3.23523]
[1720521014248,3.0,3091.8,3091.1,3.23507]
[1720521014630,3.0,3091.8,3091.1,6.47011]
[1720521014829,3.0,3091.8,3091.1,3.23504]
[1720521015138,3.0,3091.8,3090.9,3.23524]
[1720521015450,0.66947355,3091.7,3090.5,2.4763]
[1720521015657,3.23515,3091.1,3090.2,2.4763]
[1720521015870,2.84793645,3091.0,3090.2,2.4763]
[1720521016031,2.84793645,3091.0,3089.9,5.81924]
[1720521016032,3.0,3090.9,3089.9,8.29554]
[1720521016361,0.06462145,3090.8,3089.9,8.29554]
[1720521016512,6.23538,3090.9,3089.9,8.29554]
[1720521016715,4.193044,3090.9,3089.9,8.29554]
[1720521016922,3.23541,3090.8,3089.9,8.29554]
[1720521017652,0.06462145,3090.7,3089.9,8.29554]
[1720521017862,0.06462145,3090.7,3089.9,2.583]
[1720521018156,3.23588,3090.4,3089.6,2.3541]
[1720521018341,0.323588,3090.3,3089.6,2.3541]
[1720521018521,3.0,3090.5,3089.6,2.3541]
[1720521019036,3.0,3090.5,3089.7,3.23649]
[1720521019246,3.0,3090.7,3090.1,3.23613]
[1720521019416,3.0,3090.8,3090.1,3.23613]
[1720521021448,3.0,3090.8,3089.9,5.81928]
[1720521021449,2.2719,3091.3,3090.3,2.583]
[1720521021759,5.50653,3091.6,3090.4,3.23576]
[1720521022055,3.23478,3091.4,3090.5,3.23572]
[1720521022265,3.23494,3091.3,3090.4,3.23576]
[1720521022420,6.46991,3091.3,3090.4,3.23576]
[1720521022758,3.23494,3091.3,3090.4,6.47152]
[1720521023055,0.6048521,3091.7,3090.7,3.23545]
[1720521023355,3.23448,3091.7,3090.8,5.4999]
[1720521023665,3.23434,3091.9,3090.9,3.23528]
[1720521023819,0.37130036,3091.8,3090.9,3.23528]
[1720521024016,2.01401284,3092.2,3091.2,2.583]
[1720521024355,7.61634171,3092.5,3091.5,3.23462]
[1720521024356,5.60588,3092.5,3091.5,3.23462]
[1720521024515,0.33861866,3092.2,3091.5,3.23462]
[1720521025918,3.33861866,3092.2,3091.5,3.23462]
[1720521026828,0.33861866,3092.2,3091.4,2.2645]
[1720521027035,3.23406,3092.1,3091.2,2.583]
[1720521027231,3.40324011,3092.2,3091.0,2.2645]
[1720521027232,3.23437,3091.8,3091.0,2.2645]
[1720521027423,0.06462145,3091.7,3090.8,2.583]
[1720521027622,6.29913145,3091.7,3090.8,5.81832]
[1720521027826,3.06462145,3091.7,3090.9,3.23526]
[1720521028156,3.0,3091.7,3090.9,3.23526]
[1720521028533,3.0,3091.7,3091.0,3.23519]
[1720521028741,6.23431,3091.9,3091.0,3.23519]
[1720521029070,6.23431,3091.9,3090.8,5.81831]
[1720521029071,8.9098,3091.8,3090.8,5.81831]
[1720521029357,3.23463,3091.6,3090.8,2.583]
[1720521029559,6.29929145,3091.5,3090.4,5.81876]
[1720521029761,6.29929145,3091.5,3090.5,3.23571]
[1720521029762,3.23489,3091.3,3090.5,3.23571]
[1720521029924,3.23467,3091.5,3090.5,3.23571]
[1720521030124,3.0,3091.4,3090.5,3.23571]
[1720521030535,3.0,3091.5,3090.7,3.2355]
[1720521031167,3.0,3091.5,3090.4,2.583]
[1720521031168,3.0,3091.5,3090.8,0.06470244]
[1720521031353,3.0,3091.8,3091.0,3.23512]
[1720521031540,0.3387753,3091.7,3091.0,3.23512]
[1720521031858,3.0,3091.8,3091.0,3.23512]
[1720521032261,3.0,3091.8,3091.1,3.23509]
[1720521033130,3.0,3091.8,3090.9,5.6942]
[1720521033365,7.9130792,3091.8,3090.9,2.459]
[1720521033586,1.11473492,3091.7,3090.9,2.459]
[1720521033722,3.2348,3091.4,3090.8,2.583]
[1720521034447,0.06462145,3091.3,3090.8,2.583]
[1720521034763,0.06462145,3091.3,3090.4,5.81872]
[1720521034932,1.11872751,3091.3,3090.4,5.81872]
[1720521035138,3.23504,3091.2,3090.4,2.583]
[1720521035337,3.23511,3091.1,3090.4,2.583]
[1720521035949,3.23541,3090.8,3089.9,3.23629]
[1720521036152,3.23541,3090.8,3090.0,5.583]
[1720521036568,3.23541,3090.8,3090.0,8.81923]
[1720521036771,3.23541,3090.8,3090.0,5.81923]
[1720521037147,3.23539,3090.9,3090.0,5.81923]
[1720521037659,3.23546,3090.8,3090.0,5.81923]
[1720521038963,6.47095,3090.8,3090.0,2.583]
[1720521039156,3.88253,3090.8,3090.0,2.583]
[1720521039353,3.23546,3090.8,3090.0,2.583]
[1720521039551,3.23546,3090.8,3090.0,5.81918]
[1720521040146,3.23546,3090.8,3090.0,2.583]
[1720521040352,0.06462145,3090.7,3090.0,2.583]
[1720521040636,3.30013145,3090.7,3090.0,2.583]
[1720521040862,4.12170045,3090.7,3090.0,2.583]
[1720521041064,3.23567,3090.6,3090.0,2.583]
[1720521042482,6.47135,3090.6,3090.0,2.583]
[1720521043139,0.821569,3090.7,3089.6,2.583]
[1720521043140,3.23602,3090.3,3089.6,2.583]
[1720521043340,3.62431345,3090.2,3089.6,2.583]
[1720521043558,3.30071145,3090.2,3089.6,2.583]
[1720521044039,3.23593,3090.3,3089.6,2.583]
[1720521045245,6.47192,3090.3,3089.6,2.583]